bitfinex/quotes_ETHUSD_20220115
["timestamp","ask_amount","ask_price","bid_price","bid_amount"]
[1642226206035,0.75409,3316.6,3316.4,0.00682108]
[1642226206236,1.05409,3316.6,3316.4,0.00682108]
[1642226206634,1.05409,3316.6,3316.3,0.00738951]
[1642226207034,1.05409,3316.6,3316.5,2.57829305]
[1642226207639,0.3,3316.6,3316.5,2.57829305]
[1642226207834,0.3,3316.6,3316.4,2.57829305]
[1642226208080,1.0,3316.8,3316.4,2.57829305]
[1642226208081,0.6,3316.8,3316.4,2.57829305]
[1642226208281,1.6,3316.9,3316.4,2.57829305]
[1642226208481,0.3,3316.7,3316.5,2.57829305]
[1642226208682,2.307743,3317.0,3316.5,2.57829305]
[1642226208881,2.307743,3317.0,3316.6,0.00568424]
[1642226209081,1.10375217,3316.8,3316.6,0.00568424]
[1642226209480,1.85776217,3316.8,3316.6,0.00568424]
[1642226209883,2.15776217,3316.8,3316.6,0.00568424]
[1642226210082,2.45776217,3316.8,3316.6,0.00568424]
[1642226210882,2.45776217,3316.8,3316.3,0.00738951]
[1642226211683,2.45776217,3316.8,3316.4,2.57825531]
[1642226211940,2.50322517,3316.8,3316.4,2.57825531]
[1642226212140,1.0,3316.7,3316.4,2.57825531]
[1642226212540,1.0,3316.7,3316.2,2.57825531]
[1642226212945,0.75409,3316.5,3316.3,0.00738951]
[1642226213343,1.35409,3316.5,3316.3,0.00738951]
[1642226213641,2.35409,3316.5,3316.0,0.00909478]
[1642226213841,2.399553,3316.5,3316.0,0.00909478]
[1642226214042,3.907973,3316.5,3316.0,0.00909478]
[1642226214241,4.6621377,3316.5,3316.0,0.00909478]
[1642226214842,1.54126636,3316.3,3316.0,0.00909478]
[1642226215141,1.50842,3316.2,3316.0,0.00909478]
[1642226215583,2.50842,3316.2,3316.0,0.00909478]
[1642226215781,1.50842,3316.2,3316.0,0.00909478]
[1642226216180,2.50842,3316.2,3316.0,0.00909478]
[1642226217283,3.10842,3316.2,3315.7,0.01080005]
[1642226217482,1.447189,3315.8,3315.7,0.01080005]
[1642226217683,3.10842,3316.2,3315.5,0.01193689]
[1642226217883,1.0,3316.1,3315.5,2.59492869]
[1642226218088,2.35421,3316.2,3315.5,2.58759282]
[1642226218285,2.35421,3316.2,3315.6,0.01136847]
[1642226218684,3.82145365,3316.2,3315.6,0.01136847]
[1642226218886,2.82145365,3316.2,3315.5,0.01193689]
[1642226219084,1.0,3316.1,3315.5,0.01193689]
[1642226219529,0.3,3316.2,3315.5,0.01193689]
[1642226219731,0.045463,3316.3,3315.5,0.01193689]
[1642226220736,1.0,3316.4,3315.5,2.78313227]
[1642226221232,0.045463,3316.5,3315.6,0.01136847]
[1642226221633,0.75405,3316.8,3315.6,0.01136847]
[1642226221634,0.045463,3316.8,3315.6,0.01136847]
[1642226221833,1.45531437,3316.8,3315.8,1.41187805]
[1642226222033,1.45531437,3316.8,3315.9,2.90455032]
[1642226222234,1.45531437,3316.8,3315.9,2.91421352]
[1642226222435,1.45531437,3316.8,3316.0,0.00909478]
[1642226222634,0.045463,3316.8,3316.0,0.00909478]
[1642226223286,0.045463,3316.6,3316.0,0.00909478]
[1642226227634,0.045463,3316.3,3316.0,0.00909478]
[1642226228637,0.045463,3316.1,3316.0,0.00909478]
[1642226228837,1.5066329,3316.1,3316.0,0.00909478]
[1642226229037,1.8066329,3316.1,3316.0,0.00909478]
[1642226229638,1.8066329,3316.1,3315.8,0.01023162]
[1642226230037,1.345463,3316.1,3315.4,0.01250532]
[1642226230236,0.345463,3316.1,3315.4,2.74327028]
[1642226230438,1.51057402,3315.7,3315.4,0.01250532]
[1642226230683,1.51057402,3315.7,3315.5,0.01193689]
[1642226230884,1.51057402,3315.7,3315.4,0.01250532]
[1642226231885,1.51057402,3315.7,3315.5,2.57853032]
[1642226232285,1.51057402,3315.7,3315.6,0.01136847]
[1642226233089,1.51057402,3315.7,3315.6,2.58989879]
[1642226233689,1.51057402,3315.7,3315.6,2.64430182]
[1642226234352,1.51057402,3315.7,3315.6,5.37695417]
[1642226234533,1.51057402,3315.7,3315.6,2.64430182]
[1642226234936,1.51057402,3315.7,3315.6,5.36804415]
[1642226235636,1.51057402,3315.7,3315.6,5.36369624]
[1642226236036,1.51057402,3315.7,3315.6,2.64430182]
[1642226243432,1.51057402,3315.7,3315.6,2.58989879]
[1642226252931,1.55603702,3315.7,3315.6,2.58989879]
[1642226253183,3.66477702,3315.7,3315.6,2.29042179]
[1642226253581,3.154203,3315.7,3315.6,2.29042179]
[1642226253981,2.154203,3315.7,3315.4,0.05440631]
[1642226254185,0.045463,3315.5,3314.9,1.40913989]
[1642226254386,1.5564832,3314.9,3314.7,2.8657641]
[1642226254581,1.6019462,3314.9,3314.5,5.2882885]
[1642226254781,1.6019462,3314.9,3314.5,1.4890885]
[1642226254982,0.045463,3314.8,3314.7,0.00511581]
[1642226255384,1.50596038,3314.6,3314.5,1.4890885]
[1642226255684,1.50596038,3314.6,3314.5,0.00113685]
[1642226255685,1.55142338,3314.6,3314.5,0.00113685]
[1642226256083,1.55142338,3314.6,3314.4,0.00170527]
[1642226257133,1.55142338,3314.6,3314.3,0.0022737]
[1642226257335,0.045463,3314.5,3314.3,0.0022737]
[1642226257532,1.55142338,3314.6,3314.3,0.0022737]
[1642226258032,0.045463,3314.4,3314.3,0.0022737]
[1642226258232,0.800063,3314.4,3314.3,0.0022737]
[1642226259033,4.23190784,3314.4,3314.3,0.0022737]
[1642226259239,1.400063,3314.4,3314.3,0.0022737]
[1642226259436,2.400063,3314.4,3314.3,0.0022737]
[1642226259633,1.400063,3314.4,3314.3,0.0022737]
[1642226260892,1.445526,3314.4,3314.3,0.0022737]
[1642226261290,1.445526,3314.4,3314.2,0.0730107]
[1642226261893,4.21974262,3314.4,3314.2,0.0730107]
[1642226262092,1.0,3314.3,3314.2,0.0730107]
[1642226262290,4.03490323,3314.3,3314.2,0.0730107]
[1642226262691,1.3,3314.3,3314.2,0.0730107]
[1642226263091,0.3,3314.3,3314.2,0.0730107]
[1642226263294,2.445526,3314.4,3314.2,0.0730107]
[1642226263592,2.81374406,3314.3,3314.2,0.0730107]
[1642226263793,3.59794406,3314.3,3314.2,0.0730107]
[1642226264101,4.89794406,3314.3,3314.2,0.0730107]
[1642226272733,2.129663,3314.3,3314.2,0.0730107]
[1642226272933,1.345463,3314.3,3314.2,0.0730107]
[1642226273535,3.7096605,3314.3,3314.2,0.0730107]
[1642226273734,3.7096605,3314.3,3314.2,2.65304564]
[1642226273936,6.42032497,3314.3,3314.2,2.65304564]
[1642226274637,3.7096605,3314.3,3314.2,2.65304564]
[1642226276283,1.345463,3314.3,3314.2,2.65304564]
[1642226276485,1.3,3314.3,3314.2,2.65304564]
[1642226277085,0.3,3314.3,3314.2,2.65304564]
[1642226277389,0.345463,3314.4,3314.3,3.9]
[1642226277585,0.345463,3314.4,3314.2,5.64214451]
[1642226277985,1.100063,3314.4,3314.2,5.64214451]
[1642226278385,1.400063,3314.4,3314.2,5.64214451]
[1642226278986,1.400063,3314.4,3314.3,2.58003494]
[1642226279185,1.400063,3314.4,3314.3,4.87441311]
[1642226280035,1.400063,3314.4,3314.3,2.58003494]
[1642226282543,4.17358331,3314.4,3314.3,2.58003494]
[1642226282736,4.11789078,3314.4,3314.3,2.58003494]
[1642226282936,5.11789078,3314.4,3314.3,2.58003494]
[1642226284187,5.19434868,3314.4,3314.3,2.58003494]
[1642226284391,2.4765209,3314.4,3314.3,2.58003494]
[1642226285189,2.4765209,3314.4,3314.2,0.0730107]
[1642226285386,1.0,3314.3,3314.2,0.0730107]
[1642226285587,0.345463,3314.3,3314.2,0.0730107]
[1642226285987,1.345463,3314.3,3314.2,0.0730107]
[1642226287032,0.345463,3314.3,3314.2,0.0730107]
[1642226287232,1.345463,3314.3,3314.2,0.0730107]
[1642226287634,0.345463,3314.3,3314.2,0.0730107]
[1642226287841,1.345463,3314.3,3314.2,0.0730107]
[1642226288033,4.06743891,3314.3,3314.2,0.0730107]
[1642226288434,4.06743891,3314.3,3313.3,4.053]
[1642226288636,1.5096205,3313.8,3313.3,4.053]
[1642226288834,0.3,3313.7,3313.4,0.00511581]
[1642226289236,0.3,3313.7,3313.2,1.1869]
[1642226289237,2.81793441,3313.6,3313.3,0.00568423]
[1642226289434,3.11793441,3313.6,3313.3,0.00568423]
[1642226289634,1.045463,3313.5,3312.9,0.00795792]
[1642226289836,0.045463,3313.3,3312.9,0.00795792]
[1642226290035,0.090926,3313.3,3312.9,0.00795792]
[1642226290439,0.090926,3313.3,3312.8,0.00852635]
[1642226290686,0.090926,3313.3,3312.8,2.58861447]
[1642226290884,0.390926,3313.3,3312.8,0.00852635]
[1642226291084,0.045463,3313.3,3312.9,0.00795792]
[1642226291285,0.045463,3313.3,3312.8,2.5711084]
[1642226291683,0.045463,3313.3,3312.9,0.00795792]
[1642226292886,0.045463,3313.3,3312.8,0.00852635]
[1642226293093,0.045463,3313.2,3312.8,0.00852635]
[1642226293987,0.800333,3313.2,3312.8,0.00852635]
[1642226294734,0.800333,3313.2,3312.7,0.00909477]
[1642226294933,0.045463,3313.1,3312.7,0.00909477]
[1642226295636,0.045463,3313.1,3312.6,0.00966319]
[1642226295836,0.090926,3313.1,3312.6,0.00966319]
[1642226296235,0.75493,3312.9,3312.6,0.00966319]
[1642226297139,0.75493,3312.9,3312.5,0.01023162]
[1642226297336,1.54959843,3312.6,3312.5,0.01023162]
[1642226297534,3.09838705,3312.6,3312.5,0.01023162]
[1642226298586,3.09838705,3312.6,3312.4,0.01080004]
[1642226301588,3.09838705,3312.6,3312.3,0.01136846]
[1642226303141,3.09838705,3312.6,3312.2,0.01193689]
[1642226303743,3.09838705,3312.6,3312.3,1.52873201]
[1642226304141,3.09838705,3312.6,3312.4,0.01080004]
[1642226304541,1.54878862,3312.6,3312.4,0.01080004]
[1642226304943,1.54878862,3312.6,3312.2,0.01193689]
[1642226305343,1.54878862,3312.6,3312.5,2.58083105]
[1642226305786,1.54878862,3312.6,3312.5,2.59106267]
[1642226306188,1.54878862,3312.6,3312.5,0.01023162]
[1642226306587,1.54878862,3312.6,3312.4,0.01080004]
[1642226307188,1.54878862,3312.6,3312.2,0.01193689]
[1642226307588,0.045463,3312.8,3312.1,3.10953689]
[1642226307989,0.00170527,3312.5,3312.1,3.10953689]
[1642226308187,0.00170527,3312.5,3312.2,2.57163947]
[1642226308388,0.00113685,3312.4,3312.2,2.56487569]
[1642226308592,0.00113685,3312.4,3312.2,5.14567198]
[1642226308791,0.04830512,3312.7,3312.3,2.58946559]
[1642226308988,0.00284212,3312.7,3312.3,2.58946559]
[1642226309190,0.0022737,3312.6,3312.3,2.58946559]
[1642226309439,0.0022737,3312.6,3312.3,5.17026188]
[1642226309647,0.00284212,3312.7,3312.3,5.17026188]
[1642226310035,0.0022737,3312.6,3312.3,5.17026188]
[1642226310236,0.0022737,3312.6,3312.4,2.58079629]
[1642226310434,0.045463,3312.8,3312.4,2.58079629]
[1642226310435,0.00284212,3312.7,3312.4,2.58079629]
[1642226310836,0.0022737,3312.6,3312.4,2.58079629]
[1642226311140,0.045463,3312.9,3312.4,2.58079629]
[1642226311141,0.00341054,3312.8,3312.4,2.58079629]
[1642226311336,1.32317859,3312.7,3312.4,2.58079629]
[1642226311536,1.32602071,3312.7,3312.4,2.58079629]
[1642226311739,0.0022737,3312.6,3312.4,2.58079629]
[1642226312137,0.0022737,3312.6,3312.3,2.58079629]
[1642226312437,7.503,3312.4,3312.3,2.58079629]
[1642226312838,7.50413685,3312.4,3312.3,2.58079629]
[1642226314087,7.50413685,3312.4,3312.3,5.13526542]
[1642226316846,7.50413685,3312.4,3312.3,6.66399743]
[1642226317039,7.50413685,3312.4,3312.3,4.1095283]
[1642226317439,7.50413685,3312.4,3312.3,2.58079629]
[1642226317840,7.54959985,3312.4,3312.3,2.58079629]
[1642226318042,7.50413685,3312.4,3312.3,2.58079629]
[1642226318241,8.54959985,3312.4,3312.3,2.58079629]
[1642226318441,11.43988566,3312.4,3312.3,2.58079629]
[1642226318641,8.54959985,3312.4,3312.3,2.58079629]
[1642226318846,8.84959985,3312.4,3312.3,2.58079629]
[1642226319040,8.54959985,3312.4,3312.3,2.58079629]
[1642226324748,7.54959985,3312.4,3312.3,2.58079629]
[1642226325147,7.50413685,3312.4,3312.3,2.58079629]
[1642226325547,7.54959985,3312.4,3312.3,2.58079629]
[1642226325748,7.59506285,3312.4,3312.3,2.58079629]
[1642226327648,8.59506285,3312.4,3312.3,2.58079629]
[1642226328287,7.59506285,3312.4,3312.3,2.58079629]
[1642226328687,7.59506285,3312.4,3312.2,1.2141]
[1642226328888,7.59506285,3312.4,3312.1,3.10953689]
[1642226328889,7.498,3312.3,3312.1,3.10953689]
[1642226329088,7.543463,3312.3,3312.1,3.10953689]
[1642226329292,7.588926,3312.3,3311.7,1.1888]
[1642226329489,0.045463,3312.2,3311.7,1.1888]
[1642226329687,0.045463,3312.2,3311.9,0.00170527]
[1642226330093,7.543463,3312.3,3311.9,0.00170527]
[1642226331852,7.498,3312.3,3311.9,0.00170527]
[1642226332437,7.543463,3312.3,3311.9,0.00170527]
[1642226332640,7.498,3312.3,3311.9,0.00170527]
[1642226333439,7.498,3312.3,3311.8,0.00227369]
[1642226335592,0.045463,3312.2,3311.8,0.00227369]
[1642226335792,1.51124325,3312.1,3311.8,0.00227369]
[1642226335991,1.55670625,3312.1,3311.8,0.00227369]
[1642226336192,1.51124325,3312.1,3311.8,0.00227369]
[1642226337995,0.045463,3312.2,3311.8,0.00227369]
[1642226339839,7.543463,3312.3,3311.8,0.00227369]
[1642226340240,0.045463,3312.0,3311.8,0.00227369]
[1642226340441,0.045463,3312.2,3311.8,0.00227369]
[1642226342042,0.090926,3311.9,3311.8,0.00227369]
[1642226343089,0.045463,3311.9,3311.8,0.00227369]
[1642226343888,0.045463,3312.0,3311.8,0.00227369]
[1642226344089,0.045463,3312.1,3311.8,0.00227369]
[1642226345089,0.045463,3311.9,3311.8,0.00227369]
[1642226345690,0.045463,3312.0,3311.8,2.58356533]
[1642226348037,0.045463,3312.0,3311.8,0.00227369]
[1642226348840,0.045463,3312.0,3311.8,2.583593]
[1642226350590,0.045463,3311.9,3311.8,2.583593]
[1642226351589,0.045463,3312.0,3311.8,2.583593]
[1642226376197,7.543463,3312.3,3311.8,2.583593]
[1642226376845,0.045463,3312.2,3311.8,2.583593]
[1642226377640,0.090926,3312.2,3311.8,2.583593]
[1642226378141,0.045463,3312.1,3311.8,2.583593]
[1642226381992,0.090926,3312.1,3311.8,2.58131931]
[1642226385146,0.045463,3312.0,3311.8,2.58131931]
[1642226385351,0.045463,3311.9,3311.8,2.58131931]
[1642226385747,0.045463,3311.9,3311.8,2.583593]
[1642226386550,0.800653,3311.9,3311.8,2.213793]
[1642226386755,4.300653,3311.9,3311.8,0.00227369]
[1642226386950,1.800653,3311.9,3311.8,0.00227369]
[1642226387149,1.800653,3311.9,3311.6,0.00341054]
[1642226387549,0.045463,3311.7,3311.6,0.00341054]
[1642226387750,4.16141128,3311.7,3311.6,0.00341054]
[1642226387951,4.46141128,3311.7,3311.6,0.00341054]
[1642226388191,5.46141128,3311.7,3311.6,0.00341054]
[1642226388392,0.75529,3311.6,3310.8,4.1838]
[1642226388595,0.75529,3311.6,3310.4,4.74673201]
[1642226388596,0.045463,3311.2,3310.4,4.74673201]
[1642226388792,0.75547,3311.0,3310.9,0.00284211]
[1642226388992,3.82410636,3311.0,3310.9,0.00284211]
[1642226389395,4.82410636,3311.0,3310.9,0.00284211]
[1642226389592,6.00604155,3311.0,3310.9,0.00284211]
[1642226390495,6.76141155,3311.0,3310.5,0.00511581]
[1642226390695,0.045463,3310.6,3310.2,0.00682108]
[1642226390895,0.045463,3310.4,3310.2,0.00682108]
[1642226391095,0.090926,3310.4,3310.2,0.00682108]
[1642226391596,1.24732769,3310.3,3310.2,0.00682108]
[1642226392241,1.24732769,3310.3,3310.1,0.0073895]
[1642226392640,0.045463,3310.3,3310.0,0.00795792]
[1642226392840,0.045463,3310.5,3310.0,0.00795792]
[1642226393540,0.045463,3310.5,3309.8,0.00909477]
[1642226393541,0.090926,3310.5,3309.8,0.00909477]
[1642226393741,1.28273019,3310.4,3309.8,0.00909477]
[1642226394144,1.23726719,3310.4,3309.9,1.52873201]
[1642226394547,1.23726719,3310.4,3310.0,0.00795792]
[1642226395343,1.23726719,3310.4,3309.9,0.00852635]
[1642226396193,1.28273019,3310.4,3309.9,1.53725836]
[1642226396593,1.32819319,3310.4,3310.0,0.00795792]
[1642226397395,1.28273019,3310.4,3309.9,0.00852635]
[1642226397595,1.32819319,3310.4,3309.9,0.00852635]
[1642226397797,1.28273019,3310.4,3309.9,0.00852635]
[1642226397997,1.32819319,3310.4,3309.9,0.00852635]
[1642226399546,0.045463,3310.3,3309.9,0.00852635]
[1642226399751,0.045463,3310.3,3309.8,0.00909477]
[1642226400347,0.090926,3310.0,3309.8,0.00909477]
[1642226400547,0.7554,3310.8,3309.8,0.00909477]
[1642226400548,0.045463,3310.1,3309.8,0.00909477]
[1642226400946,0.090926,3310.3,3309.8,0.00909477]
[1642226401148,0.045463,3310.3,3309.8,0.00909477]
[1642226401349,1.18193519,3311.0,3309.8,0.00909477]
[1642226401548,0.045463,3310.7,3309.8,0.00909477]
[1642226401750,0.045463,3310.4,3309.8,0.00909477]
[1642226401951,0.045463,3310.4,3309.8,1.53782678]
[1642226402454,0.090926,3310.4,3309.8,1.53782678]
[1642226402850,0.045463,3310.4,3309.8,4.56431835]
[1642226403089,0.045463,3310.4,3309.8,1.53782678]
[1642226403090,0.090926,3310.4,3309.8,1.53782678]
[1642226403489,0.090926,3310.4,3309.9,1.52873201]
[1642226403891,0.045463,3310.4,3309.9,1.52873201]
[1642226404491,0.045463,3310.4,3309.8,1.53782678]
[1642226405195,0.045463,3310.5,3310.2,1.46564665]
[1642226405390,0.045463,3310.8,3310.3,3.048575]
[1642226405592,0.00113685,3311.6,3310.3,4.2850448]
[1642226405792,0.045463,3311.7,3310.4,4.1495]
[1642226405991,0.045463,3311.8,3310.9,1.40820509]
[1642226406191,0.045463,3311.8,3310.5,3.40509245]
[1642226406192,0.045463,3311.8,3311.0,3.9044382]
[1642226406391,0.00113685,3311.6,3311.0,3.90671189]
[1642226406852,0.09206285,3311.6,3311.0,3.90671189]
[1642226407240,0.045463,3311.5,3311.1,2.58205923]
[1642226407640,0.045463,3311.5,3311.2,0.00113684]
[1642226409044,0.090926,3311.5,3311.2,0.00113684]
[1642226409444,1.1651835,3311.4,3311.2,0.00113684]
[1642226412199,1.1651835,3311.4,3311.2,0.63641252]
[1642226412802,1.1651835,3311.4,3311.3,2.58205923]
[1642226413105,1.2561095,3311.4,3311.3,2.58205923]
[1642226413301,1.1651835,3311.4,3311.3,2.58205923]
[1642226413502,1.2561095,3311.4,3311.3,2.58205923]
[1642226414100,1.2106465,3311.4,3311.3,2.58205923]
[1642226414742,1.2561095,3311.4,3311.3,2.58205923]
[1642226415543,1.2561095,3311.4,3311.2,0.00113684]
[1642226415944,0.090926,3311.4,3311.2,0.00113684]
[1642226416344,1.1651835,3311.3,3311.2,0.00113684]
[1642226416744,1.2106465,3311.3,3311.2,0.00113684]
[1642226418793,1.1651835,3311.3,3311.2,0.00113684]
[1642226425445,1.1651835,3311.3,3311.2,2.58319607]
[1642226427991,1.1651835,3311.3,3311.2,4.72418751]
[1642226428197,1.1651835,3311.3,3311.2,22.39418751]
[1642226428394,1.1651835,3311.3,3311.2,20.25319607]
[1642226428592,1.1651835,3311.3,3311.2,20.55319607]
[1642226428795,1.1651835,3311.3,3311.2,20.85319607]
[1642226428992,1.1651835,3311.3,3311.2,3.18319607]
[1642226429193,1.1651835,3311.3,3311.2,7.05517504]
[1642226429447,1.1651835,3311.3,3311.2,24.72517504]
[1642226429844,1.1651835,3311.3,3311.2,19.4194174]
[1642226430745,1.1651835,3311.3,3311.2,25.8734556]
[1642226437546,1.1651835,3311.3,3311.2,25.87231876]
[1642226441495,7.498,3312.3,3311.4,5.7]
[1642226441697,7.498,3312.3,3311.5,17.67]
[1642226441897,0.00454739,3312.2,3311.6,17.67]
[1642226442101,0.00454739,3312.2,3311.6,17.97]
[1642226442296,7.498,3312.3,3311.6,20.55205923]
[1642226442297,0.00397897,3312.1,3311.6,20.55205923]
[1642226442498,0.00397897,3312.1,3311.7,1.26312965]
[1642226442696,0.00341054,3312.0,3311.7,1.26312965]
[1642226442896,0.00341054,3312.0,3311.6,6.7540382]
[1642226443099,7.498,3312.3,3311.6,6.7540382]
[1642226443100,0.00284212,3311.9,3311.6,24.4240382]
[1642226443497,0.0022737,3311.8,3311.6,24.4240382]
[1642226443897,0.00170527,3311.7,3311.6,24.4240382]
[1642226444096,0.00170527,3311.7,3311.6,17.97]
[1642226445651,0.00170527,3311.7,3311.6,18.72475]
[1642226446450,0.00170527,3311.7,3311.6,22.59721981]
[1642226446851,0.00170527,3311.7,3311.6,23.96900817]
[1642226447356,0.00170527,3311.7,3311.6,20.09653836]
[1642226447556,0.00170527,3311.7,3311.6,1.05475]
[1642226447754,0.00170527,3311.7,3311.6,2.50087299]
[1642226447952,0.00170527,3311.7,3311.6,0.3]
[1642226448797,0.00170527,3311.7,3311.6,4.17246981]
[1642226449404,0.00170527,3311.7,3311.5,0.7548284]
[1642226449799,0.00113685,3311.6,3311.5,0.7548284]
[1642226450201,0.00113685,3311.6,3311.4,21.53540519]
[1642226450402,0.00113685,3311.6,3311.4,22.13540519]
[1642226450606,0.00113685,3311.6,3311.5,5.7548288]
[1642226451202,0.00113685,3311.6,3311.5,4.7548288]
[1642226451601,0.00113685,3311.6,3311.5,0.7548288]
[1642226451847,0.00113685,3311.6,3311.4,3.07084457]
[1642226452042,0.00113685,3311.6,3311.5,3.87257213]
[1642226452645,0.00113685,3311.6,3311.5,23.80264774]
[1642226452840,0.00113685,3311.6,3311.5,20.93007561]
[1642226453644,0.00113685,3311.6,3311.5,24.80264774]
[1642226454642,0.00113685,3311.6,3311.5,25.55743774]
[1642226455347,0.00113685,3311.6,3311.5,25.15743774]
[1642226455593,0.00113685,3311.6,3311.5,26.15743774]
[1642226455996,7.498,3312.3,3311.9,0.7546518]
[1642226456195,7.498,3312.3,3312.0,21.83215235]
[1642226456394,7.498,3312.3,3312.1,24.47092917]
[1642226456395,0.00341054,3312.2,3312.1,24.47092917]
[1642226456595,0.00341054,3312.2,3312.1,25.77092917]
[1642226456796,0.00341054,3312.2,3312.1,1.6]
[1642226457195,0.00341054,3312.2,3312.1,0.6]
[1642226457395,0.00341054,3312.2,3312.0,4.17146708]
[1642226457797,7.498,3312.3,3312.0,1.6]
[1642226457798,0.00284212,3312.1,3312.0,1.6]
[1642226458799,0.00284212,3312.1,3312.0,0.6]
[1642226458997,0.00284212,3312.1,3312.0,1.6]
[1642226459941,0.00284212,3312.1,3312.0,4.18137623]
[1642226460343,0.00284212,3312.1,3312.0,2.58137623]
[1642226461844,0.00284212,3312.1,3311.7,0.7547899]
[1642226462343,0.00227369,3312.0,3311.7,0.7547899]
[1642226462745,0.00170527,3311.9,3311.7,0.7547899]
[1642226463197,0.00113685,3311.8,3311.7,0.7547899]
[1642226463393,0.00113685,3311.8,3311.7,25.04713413]
[1642226463594,0.00113685,3311.8,3311.7,25.34713413]
[1642226464996,0.00113685,3311.8,3311.7,29.21970626]
[1642226471293,0.00113685,3311.8,3311.7,30.21970626]
[1642226472497,0.00113685,3311.8,3311.7,31.72902626]
[1642226475344,0.00113685,3311.8,3311.7,33.25775827]
[1642226475745,0.00113685,3311.8,3311.7,31.72902626]
[1642226478396,7.498,3312.3,3312.0,0.75462]
[1642226478597,7.498,3312.3,3312.2,24.7991168]
[1642226478800,7.498,3312.3,3312.2,22.1537438]
[1642226478997,7.498,3312.3,3312.2,22.6991238]
[1642226479297,7.498,3312.3,3312.2,5.0291238]
[1642226479497,7.498,3312.3,3312.2,11.48273091]
[1642226481198,7.498,3312.3,3312.2,7.61015878]
[1642226481402,7.498,3312.3,3312.2,10.13739575]
[1642226481598,7.498,3312.3,3312.2,7.61015878]
[1642226481859,7.498,3312.3,3312.2,14.00071951]
[1642226483356,7.498,3312.3,3312.2,32.42526951]
[1642226483961,7.498,3312.3,3312.2,33.42526951]
[1642226485161,7.498,3312.3,3312.2,36.92526951]
[1642226486794,7.498,3312.3,3312.2,33.42526951]
[1642226488194,0.01278006,3313.5,3312.7,0.7545]
[1642226488395,3.990305,3314.4,3313.0,0.7544904]
[1642226488594,0.00909477,3313.4,3313.1,2.98265893]
[1642226488893,0.00852635,3313.3,3313.1,3.28265893]
[1642226489095,0.00852635,3313.3,3313.2,2.7158286]
[1642226489354,1.47531844,3314.4,3313.4,1.50317677]
[1642226489647,0.01421058,3314.3,3313.4,1.50317677]
[1642226490047,1.47531844,3314.4,3313.3,0.045463]
[1642226490048,0.01364216,3314.2,3313.3,0.045463]
[1642226490448,0.01307374,3314.1,3313.3,0.045463]
[1642226490648,1.54285245,3314.1,3313.3,0.045463]
[1642226490849,0.01250531,3314.0,3313.3,0.045463]
[1642226491249,0.01193689,3313.9,3313.4,2.58103498]
[1642226491648,1.52977871,3314.1,3313.4,2.58103498]
[1642226491649,0.01136847,3313.8,3313.4,2.58103498]
[1642226492051,0.01080004,3313.7,3313.4,2.58103498]
[1642226492351,0.01023162,3313.6,3313.4,2.58103498]
[1642226492750,0.0096632,3313.5,3313.4,2.58103498]
[1642226493998,0.0096632,3313.5,3313.4,5.58103498]
[1642226503910,0.0096632,3313.5,3313.4,5.88103498]
[1642226507250,0.0096632,3313.5,3313.4,5.58103498]
[1642226508100,0.0096632,3313.5,3313.4,5.88103498]
[1642226509496,0.0096632,3313.5,3313.4,8.50515964]
[1642226509698,0.0096632,3313.5,3313.4,5.88103498]
[1642226511099,0.0096632,3313.5,3313.4,23.55103498]
[1642226513954,0.0096632,3313.5,3313.4,24.85103498]
[1642226515352,0.0096632,3313.5,3313.4,28.72135681]
[1642226519864,0.0096632,3313.5,3313.4,29.72135681]
[1642226520066,0.0096632,3313.5,3313.4,29.76681981]
[1642226520470,0.030005,3314.4,3313.5,6.0]
[1642226520669,0.030005,3314.4,3314.1,1.5084181]
[1642226520865,0.00454738,3314.3,3314.1,1.5538811]
[1642226521068,0.00454738,3314.3,3314.1,0.045463]
[1642226521267,0.00397896,3314.2,3314.1,1.4862373]
[1642226521467,0.00397896,3314.2,3314.1,4.1971168]
[1642226521667,0.00397896,3314.2,3314.1,4.4971168]
[1642226522066,0.00397896,3314.2,3314.1,5.72669136]
[1642226522268,0.00397896,3314.2,3314.1,6.72669136]
[1642226523098,0.00397896,3314.2,3314.1,2.67034886]
[1642226523296,0.00397896,3314.2,3314.1,1.4407743]
[1642226523496,0.00397896,3314.2,3313.9,21.53975281]
[1642226523695,0.00397896,3314.2,3314.1,3.0]
[1642226523897,1.50596038,3314.6,3314.1,3.045463]
[1642226524095,1.50596038,3314.6,3314.3,0.045463]
[1642226524299,0.00568423,3314.5,3314.3,0.045463]
[1642226524698,0.00511581,3314.4,3314.3,0.045463]
[1642226526852,0.00511581,3314.4,3314.3,1.55924256]
[1642226527046,0.00511581,3314.4,3314.3,2.74718056]
[1642226528649,0.00511581,3314.4,3314.3,6.7820828]
[1642226529051,0.00511581,3314.4,3314.3,24.4520828]
[1642226533401,0.00511581,3314.4,3314.3,23.4520828]
[1642226533598,0.00511581,3314.4,3314.3,24.4520828]
[1642226533999,0.00511581,3314.4,3314.3,21.71718056]
[1642226534653,0.00511581,3314.4,3314.1,3.0]
[1642226534851,0.030005,3314.3,3314.1,3.0]
[1642226535051,0.03455238,3314.3,3314.1,3.0]
[1642226535251,0.00397896,3314.2,3314.1,3.0]
[1642226536952,0.00397896,3314.2,3314.1,3.045463]
[1642226538596,0.00397896,3314.2,3314.1,3.0]
[1642226539995,0.00397896,3314.2,3314.1,3.045463]
[1642226543045,0.00397896,3314.2,3314.1,3.0]
[1642226543247,0.00397896,3314.2,3314.1,3.045463]
[1642226543646,0.00397896,3314.2,3314.1,3.0]
[1642226543850,0.00397896,3314.2,3314.1,5.57983612]
[1642226544851,0.00397896,3314.2,3314.1,6.91599645]
[1642226545696,0.00397896,3314.2,3314.1,6.87053345]
[1642226545897,0.00397896,3314.2,3314.1,5.57983612]
[1642226546901,0.00397896,3314.2,3314.1,5.62529912]
[1642226548400,0.00397896,3314.2,3314.1,5.67076212]
[1642226549006,0.00397896,3314.2,3314.1,5.62529912]
[1642226550747,0.00397896,3314.2,3314.1,5.97076212]
[1642226550947,0.00397896,3314.2,3314.1,5.67076212]
[1642226551449,0.00397896,3314.2,3314.1,5.97076212]
[1642226553500,0.00397896,3314.2,3314.1,5.57983612]
[1642226553698,0.00397896,3314.2,3314.1,5.62529912]
[1642226553898,0.00397896,3314.2,3314.1,5.92529912]
[1642226554499,0.00397896,3314.2,3314.1,5.97076212]
[1642226556300,0.00397896,3314.2,3314.1,8.64082886]
[1642226557149,0.00397896,3314.2,3314.1,5.97076212]
[1642226557352,0.00397896,3314.2,3314.1,8.56771425]
[1642226559052,0.00397896,3314.2,3314.1,8.26771425]
[1642226559255,0.00397896,3314.2,3314.1,8.22225125]